bitfinex/quotes_ETHUSD_20251009
["timestamp","ask_amount","ask_price","bid_price","bid_amount"]
[1759981008842,0.0004301,4446.9,4446.8,22.02651849]
[1759981016225,0.0004301,4446.9,4446.8,22.13851849]
[1759981018628,0.002,4447.3,4447.2,2.88220586]
[1759981018819,0.002,4447.3,4447.2,17.04925082]
[1759981019019,0.002,4447.3,4447.2,17.95575864]
[1759981019430,0.002,4447.3,4447.2,18.04576774]
[1759981021058,0.002,4447.3,4447.2,18.48811936]
[1759981022130,0.002,4447.3,4447.2,12.5850744]
[1759981022334,0.002,4447.3,4447.2,18.03381154]
[1759981022521,0.002,4447.3,4447.2,17.94380244]
[1759981025352,0.002,4447.3,4447.2,17.31020244]
[1759981028920,0.002,4447.3,4447.2,16.97000244]
[1759981029545,0.002,4447.3,4446.8,2.34]
[1759981029856,0.002,4447.3,4446.9,6.343]
[1759981030053,0.4557,4447.2,4446.9,6.343]
[1759981030262,0.002,4447.3,4447.1,3.94464026]
[1759981030457,0.002,4447.3,4447.2,6.343]
[1759981030850,0.4577,4447.3,4447.2,6.343]
[1759981031051,0.002,4447.3,4447.2,6.343]
[1759981031458,0.4577,4447.3,4447.2,6.343]
[1759981031860,0.72851114,4447.3,4447.2,6.343]
[1759981032059,0.4577,4447.3,4447.2,6.343]
[1759981037698,0.002,4447.3,4447.2,10.28764026]
[1759981038186,0.4577,4447.3,4447.2,10.28764026]
[1759981038942,0.002,4447.3,4447.2,18.40088638]
[1759981039246,0.002,4447.3,4447.2,19.37468638]
[1759981039564,0.002,4447.3,4447.2,21.64902366]
[1759981040245,0.002,4447.3,4447.2,21.73903276]
[1759981040446,0.002,4447.3,4447.2,21.64902366]
[1759981041463,0.002,4447.3,4447.2,22.24902366]
[1759981055585,0.002,4447.4,4447.3,4.8145553]
[1759981055790,0.002,4447.4,4447.3,5.65358032]
[1759981057209,0.01,4449.9,4449.7,2.24733076]
[1759981057507,0.01,4449.9,4449.8,10.95076493]
[1759981057701,0.01,4449.9,4449.8,11.26849201]
[1759981059167,0.01,4449.9,4449.8,8.681]
[1759981059503,0.4468,4449.9,4449.8,8.681]
[1759981059671,0.01,4449.9,4449.8,8.681]
[1759981060672,0.01,4449.9,4449.8,12.62564026]
[1759981069307,0.01,4449.9,4449.8,8.681]
[1759981070219,0.4519,4449.9,4449.8,8.681]
[1759981071025,0.01,4449.9,4449.8,8.681]
[1759981071834,0.4519,4449.9,4449.8,8.681]
[1759981072607,0.01,4449.9,4449.8,8.681]
[1759981073208,0.4519,4449.9,4449.8,8.681]
[1759981074440,0.01,4449.9,4449.8,8.681]
[1759981075522,0.012,4449.9,4449.8,8.681]
[1759981076642,0.4811,4449.9,4449.8,8.681]
[1759981077339,0.012,4449.9,4449.8,8.681]
[1759981081830,2.72834151,4449.9,4449.8,2.338]
[1759981082018,3.22897566,4449.9,4449.8,8.678]
[1759981082419,3.22897566,4449.9,4449.8,6.34]
[1759981082959,0.112,4449.8,4449.6,6.34]
[1759981083117,0.112,4449.8,4449.5,6.34]
[1759981083118,2.24739302,4449.6,4449.5,6.34]
[1759981083323,3.26413494,4449.6,4449.5,6.34]
[1759981086349,3.26413494,4449.6,4448.4,4.258]
[1759981086350,2.24774663,4448.9,4448.4,4.258]
[1759981086548,2.35974663,4448.9,4448.8,6.342]
[1759981086933,2.82884663,4448.9,4448.8,6.342]
[1759981088328,2.82884663,4448.9,4448.8,0.001]
[1759981088657,3.33649813,4448.9,4448.8,0.001]
[1759981108601,2.35974663,4448.9,4448.8,0.001]
[1759981108802,2.79254663,4448.9,4448.8,0.001]
[1759981112993,2.35974663,4448.9,4448.8,0.001]
[1759981113587,2.79454663,4448.9,4448.8,0.001]
[1759981118121,2.36174663,4448.9,4448.8,0.001]
[1759981118308,2.79454663,4448.9,4448.8,0.001]
[1759981120217,2.79454663,4448.9,4448.8,0.601]
[1759981139845,2.36174663,4448.9,4448.8,0.601]
[1759981140045,2.79874663,4448.9,4448.8,0.601]
[1759981142954,0.002,4448.9,4448.8,18.78300571]
[1759981143152,0.002,4448.9,4448.8,21.48985833]
[1759981143320,0.002,4448.9,4448.8,13.98865262]
[1759981143521,0.002,4448.9,4448.8,12.6802]
[1759981143922,0.002,4448.9,4448.8,12.8022]
[1759981144223,0.002,4448.9,4448.8,12.5682]
[1759981144433,0.002,4448.9,4448.8,11.874]
[1759981146530,0.002,4448.9,4448.8,2.521]
[1759981147344,0.002,4448.9,4448.8,4.76879715]
[1759981147951,0.002,4448.9,4448.8,5.10899715]
[1759981153946,0.002,4448.9,4448.8,13.14272318]
[1759981154155,0.002,4448.9,4448.8,14.91777396]
[1759981154347,0.002,4448.9,4448.8,17.16557111]
[1759981159367,0.002,4448.9,4448.8,17.79917111]
[1759981159864,0.002,4448.9,4448.8,17.88915429]
[1759981161070,0.002,4448.9,4448.8,13.60843111]
[1759981161268,0.002,4448.9,4448.8,17.54895429]
[1759981161469,0.002,4448.9,4448.8,7.03198318]
[1759981161639,0.439,4448.9,4448.8,7.03198318]
[1759981163072,2.68674663,4448.9,4448.8,6.942]
[1759981163476,2.68674663,4448.9,4448.8,0.601]
[1759981163673,2.68674663,4448.9,4448.8,0.001]
[1759981163846,3.57423863,4448.9,4448.8,0.001]
[1759981187684,2.68674663,4448.9,4448.8,0.001]
[1759981194818,2.24974663,4448.9,4448.8,0.001]
[1759981195394,2.71524663,4448.9,4448.8,0.001]
[1759981200027,9.05624663,4448.9,4448.8,0.001]
[1759981202903,2.71524663,4448.9,4448.8,0.001]
[1759981203112,2.24974663,4448.9,4448.8,0.001]
[1759981203334,0.002,4448.9,4448.8,0.001]
[1759981203537,2.24974663,4448.9,4448.8,0.001]
[1759981203834,2.71524663,4448.9,4448.8,0.001]
[1759981205900,0.002,4448.9,4448.8,0.001]
[1759981206101,0.002,4448.9,4448.8,0.39515232]
[1759981206348,0.002,4448.9,4448.8,0.73535232]
[1759981206506,0.002,4448.9,4448.8,1.43278009]
[1759981206849,0.002,4448.9,4448.8,3.68057724]
[1759981207649,0.002,4448.9,4448.8,6.20057724]
[1759981207845,0.002,4448.9,4448.8,6.81169927]
[1759981209432,0.002,4448.9,4448.8,4.22370212]
[1759981209741,0.002,4448.9,4448.8,4.56390212]
[1759981210637,0.002,4448.9,4448.8,6.81169927]
[1759981210936,0.002,4448.9,4448.8,4.56390212]
[1759981211330,0.002,4448.9,4448.8,6.81169927]
[1759981211636,0.002,4448.9,4448.8,4.56390212]
[1759981211934,0.002,4448.9,4448.8,6.81169927]
[1759981213920,0.002,4448.9,4448.8,11.72197338]
[1759981216539,0.002,4448.9,4448.8,9.47417623]
[1759981216864,0.002,4448.9,4448.8,8.50037623]
[1759981217047,0.002,4448.9,4448.8,3.59010212]
[1759981218087,0.002,4448.9,4448.8,3.3079498]
[1759981219555,0.002,4448.9,4448.8,5.55574695]
[1759981219962,0.002,4448.9,4448.8,3.3079498]
[1759981223355,0.002,4448.9,4448.8,5.55574695]
[1759981224069,0.002,4448.9,4448.8,3.3079498]
[1759981224278,0.002,4448.9,4448.8,1.3879498]
[1759981225254,0.002,4448.9,4448.8,3.63574695]
[1759981228162,0.002,4448.9,4448.8,1.3879498]
[1759981228368,0.002,4448.9,4448.8,3.63574695]
[1759981228602,0.002,4448.9,4448.8,1.3879498]
[1759981229673,0.002,4448.9,4448.8,0.601]
[1759981233471,0.002,4448.9,4448.8,2.84879715]
[1759981234316,0.002,4448.9,4448.8,2.96079715]
[1759981234506,0.002,4448.9,4448.8,0.713]
[1759981237904,0.002,4448.9,4448.8,2.96079715]
[1759981240486,0.4752,4448.9,4448.8,0.601]
[1759981244215,0.002,4448.9,4448.8,0.601]
[1759981244810,0.002,4448.9,4448.8,0.62347797]
[1759981245415,0.002,4448.9,4448.8,7.15610114]
[1759981245606,0.002,4448.9,4448.8,7.13362317]
[1759981245801,0.002,4448.9,4448.8,7.8084591]
[1759981247630,0.002,4448.9,4448.8,7.4682591]
[1759981247923,0.002,4448.9,4448.8,12.37853321]
[1759981248920,0.002,4448.9,4448.8,12.71873321]
[1759981250905,0.002,4448.9,4448.8,12.37853321]
[1759981251417,0.002,4448.9,4448.8,12.71873321]
[1759981252307,0.002,4448.9,4448.8,12.37853321]
[1759981253133,0.002,4448.9,4448.8,12.71873321]
[1759981253709,0.002,4448.9,4448.8,12.37853321]
[1759981255038,0.002,4448.9,4448.8,12.71873321]
[1759981255536,0.002,4448.9,4448.8,12.83073321]
[1759981265655,0.002,4448.9,4448.8,7.5802591]
[1759981266024,0.002,4448.9,4448.8,7.9204591]
[1759981266234,0.002,4448.9,4448.8,5.33246195]
[1759981266523,0.002,4448.9,4448.8,3.30783593]
[1759981266745,0.002,4448.9,4448.8,3.19583593]
[1759981266949,2.72314663,4448.9,4448.8,0.601]
[1759981267156,2.83514663,4448.9,4448.8,0.601]
[1759981267348,3.34342868,4448.9,4448.8,0.601]
[1759981267951,1.09568205,4448.9,4448.8,0.601]
[1759981268257,0.4754,4448.9,4448.8,0.601]
[1759981268633,2.72314663,4448.9,4448.8,0.601]
[1759981269443,0.4754,4448.9,4448.8,0.601]
[1759981269648,0.002,4448.9,4448.8,0.601]
[1759981270973,2.72314663,4448.9,4448.8,0.601]
[1759981271563,3.00666129,4448.9,4448.8,0.601]
[1759981272381,3.00666129,4448.9,4448.8,0.001]
[1759981279064,9.34466129,4448.9,4448.8,0.001]
[1759981282598,3.00666129,4448.9,4448.8,0.001]
[1759981282777,9.34566129,4448.9,4448.8,0.001]
[1759981289612,3.00666129,4448.9,4448.8,0.001]
[1759981289917,9.34566129,4448.9,4448.8,0.001]
[1759981306627,16.48566129,4448.9,4448.8,0.001]
[1759981313342,10.14666129,4448.9,4448.8,0.001]
[1759981313547,16.48566129,4448.9,4448.8,0.001]
[1759981314048,10.14666129,4448.9,4448.8,0.001]
[1759981314342,16.48566129,4448.9,4448.8,0.001]
[1759981314850,9.34566129,4448.9,4448.8,0.001]
[1759981317223,9.83127608,4448.9,4448.8,0.001]
[1759981318347,3.49227608,4448.9,4448.8,0.001]
[1759981318522,9.83127608,4448.9,4448.8,0.001]
[1759981324475,11.75129854,4448.9,4448.8,0.001]
[1759981324695,15.69425702,4448.9,4448.8,0.001]
[1759981324974,8.11095776,4448.4,4448.3,1e-08]
[1759981325143,17.59639369,4448.4,4448.3,1e-08]
[1759981325344,13.65343521,4448.4,4448.3,1e-08]
[1759981325645,14.10683521,4448.4,4448.3,1e-08]
[1759981326166,13.89603653,4448.4,4448.3,1e-08]
[1759981326370,16.14780698,4448.4,4448.3,1e-08]
[1759981328268,16.35833343,4448.4,4448.3,1e-08]
[1759981328786,16.24633343,4448.4,4448.3,1e-08]
[1759981328995,8.26559874,4448.4,4448.3,1e-08]
[1759981329160,16.94259874,4448.4,4448.3,1e-08]
[1759981329357,16.33638589,4448.4,4448.3,1e-08]
[1759981334966,16.94259874,4448.4,4448.3,1e-08]
[1759981335366,16.94459874,4448.4,4448.3,1e-08]
[1759981335566,2.24825198,4447.9,4447.8,1e-08]
[1759981335768,13.19766211,4447.9,4447.8,1e-08]
[1759981335964,14.13669936,4447.9,4447.8,1e-08]
[1759981337270,14.22676115,4447.9,4447.8,1e-08]
[1759981337780,2.24860586,4447.2,4446.3,0.001]
[1759981337990,9.03831692,4447.2,4446.3,0.001]
[1759981338192,11.41171692,4447.2,4446.3,0.001]
[1759981339194,9.04200586,4447.2,4446.3,0.001]
[1759981340803,2.70200586,4447.2,4446.3,0.001]
[1759981341109,9.04200586,4447.2,4446.3,0.001]
[1759981351145,10.96300586,4447.2,4446.3,0.001]
[1759981351771,2.24875756,4446.9,4446.3,0.001]
[1759981351922,12.76152801,4446.9,4446.3,0.001]
[1759981352340,13.23532801,4446.9,4446.3,0.001]
[1759981353520,13.23532801,4446.9,4446.6,0.001]
[1759981354222,13.44573662,4446.9,4446.6,0.001]
[1759981354422,14.02051139,4446.9,4446.6,0.001]
[1759981355529,2.24895985,4446.5,4446.4,1e-08]
[1759981355718,17.9927042,4446.5,4446.4,1e-08]
[1759981355923,18.4665042,4446.5,4446.4,1e-08]
[1759981356351,18.55658363,4446.5,4446.4,1e-08]
[1759981359444,9.87658363,4446.5,4446.4,1e-08]
[1759981359647,18.55658363,4446.5,4446.4,1e-08]
[1759981361362,18.76692194,4446.5,4446.4,1e-08]
[1759981361956,5.07799415,4446.5,4446.4,1e-08]
[1759981362160,10.98375985,4446.5,4446.4,1e-08]
[1759981362354,10.98038637,4446.5,4446.4,1e-08]
[1759981365173,11.28080932,4446.5,4446.4,1e-08]
[1759981365379,11.76544456,4446.5,4446.4,1e-08]
[1759981366797,14.10644456,4446.5,4446.4,1e-08]
[1759981366957,16.35821501,4446.5,4446.4,1e-08]
[1759981367299,6.98124538,4446.5,4446.4,1e-08]
[1759981367485,15.66324538,4446.5,4446.4,1e-08]
[1759981368285,6.98124538,4446.5,4446.4,1e-08]
[1759981368591,15.66324538,4446.5,4446.4,1e-08]
[1759981368758,6.98124538,4446.5,4446.4,1e-08]
[1759981368955,15.66324538,4446.5,4446.4,1e-08]
[1759981370888,22.80324538,4446.5,4446.4,1e-08]
[1759981371576,23.01356578,4446.5,4446.4,1e-08]
[1759981371772,14.33156578,4446.5,4446.4,1e-08]
[1759981371974,11.86947493,4446.5,4446.4,1e-08]
[1759981372164,18.12338637,4446.5,4446.4,1e-08]
[1759981374888,11.78138637,4446.5,4446.4,1e-08]
[1759981375260,18.12338637,4446.5,4446.4,1e-08]
[1759981378008,11.78138637,4446.5,4446.4,1e-08]
[1759981378208,18.12338637,4446.5,4446.4,1e-08]
[1759981381671,19.04110257,4446.5,4446.4,1e-08]
[1759981387186,9.38758637,4446.5,4446.4,1e-08]
[1759981387387,9.81738637,4446.5,4446.4,1e-08]
[1759981387592,16.15938637,4446.5,4446.4,1e-08]
[1759981390716,16.16275985,4446.5,4446.4,1e-08]
[1759981392297,9.02275985,4446.5,4446.4,1e-08]
[1759981392816,0.002,4446.5,4446.4,1e-08]
[1759981393032,0.002,4446.5,4446.4,0.49318485]
[1759981393594,0.002,4446.5,4446.4,3.08239528]
[1759981393815,0.002,4446.5,4446.4,1.53338485]
[1759981394023,0.002,4446.5,4446.4,1.19318485]
[1759981395340,0.4318,4446.5,4446.4,0.70000001]
[1759981395731,0.002,4446.5,4446.4,0.70000001]
[1759981396159,0.002,4446.5,4446.4,0.72249011]
[1759981398518,2.68075985,4446.5,4446.4,0.70000001]
[1759981400954,3.18492294,4446.5,4446.4,0.70000001]
[1759981401323,3.18492294,4446.5,4446.4,1e-08]
[1759981406358,2.68075985,4446.5,4446.4,1e-08]
[1759981419463,9.02175985,4446.5,4446.4,1e-08]
[1759981422451,9.01375985,4446.5,4446.4,1e-08]
[1759981423897,9.01575985,4446.5,4446.4,1e-08]
[1759981427986,0.002,4446.5,4446.4,1e-08]
[1759981428557,2.25095985,4446.5,4446.4,1e-08]
[1759981428954,2.79685985,4446.5,4446.4,1e-08]
[1759981429155,0.114,4446.5,4446.4,1e-08]
[1759981429352,0.114,4446.5,4446.4,0.39818745]
[1759981429586,0.114,4446.5,4446.4,1.09818745]
[1759981431488,0.114,4446.5,4446.4,0.70000001]
[1759981436017,2.36295985,4446.5,4446.4,0.70000001]
[1759981436600,0.5693,4446.5,4446.4,0.70000001]
[1759981438599,2.81825985,4446.5,4446.4,0.70000001]
[1759981439471,2.36295985,4446.5,4446.4,0.70000001]
[1759981440614,2.81825985,4446.5,4446.4,0.70000001]
[1759981442283,2.81825985,4446.5,4446.4,1e-08]
[1759981446013,3.32497214,4446.5,4446.4,1e-08]
[1759981458029,9.66597214,4446.5,4446.4,1e-08]
[1759981461930,9.75604224,4446.5,4446.4,1e-08]
[1759981462943,11.67604224,4446.5,4446.4,1e-08]
[1759981463151,2.24901043,4446.4,4446.1,1e-08]
[1759981463307,9.08819705,4446.2,4446.1,1e-08]
[1759981463507,15.42919705,4446.2,4446.1,1e-08]
[1759981463750,15.90199705,4446.2,4446.1,1e-08]
[1759981463908,15.99208582,4446.2,4446.1,1e-08]
[1759981464104,18.01752078,4446.2,4446.1,1e-08]
[1759981464416,18.50246808,4446.2,4446.1,1e-08]
[1759981464618,21.05198112,4446.2,4446.1,1e-08]
[1759981465539,21.05198112,4446.2,4445.2,0.001]
[1759981465540,2.24936455,4445.7,4445.6,1e-08]
[1759981465744,15.42945,4445.7,4445.6,1e-08]
[1759981465917,18.43050337,4445.7,4445.6,1e-08]
[1759981466437,18.52060228,4445.7,4445.6,1e-08]
[1759981467441,18.52060228,4445.7,4444.1,0.01]
[1759981467442,2.24961756,4445.2,4444.1,0.01]
[1759981467643,9.08875362,4445.1,4444.1,0.01]
[1759981467936,9.98644227,4445.1,4444.1,0.01]
[1759981468138,10.07655701,4445.1,4444.1,0.01]
[1759981468544,10.18595201,4445.1,4444.1,0.01]
[1759981468762,2.25012375,4444.2,4444.1,0.01]
[1759981468907,8.59112375,4444.2,4444.1,0.01]
[1759981469258,10.45641427,4444.2,4444.1,0.01]
[1759981469413,11.13232057,4444.2,4444.1,0.01]
[1759981472355,13.05232057,4444.2,4444.1,0.01]
[1759981473045,13.05232057,4444.2,4444.1,0.011]
[1759981474553,13.05232057,4444.2,4444.1,1e-08]
[1759981481292,13.05232057,4444.2,4441.1,0.01]
[1759981481293,2.368,4443.3,4441.1,0.01]
[1759981481587,2.25027931,4443.9,4441.1,0.01]
[1759981481588,2.25078214,4442.9,4441.1,0.01]
[1759981481764,2.25078214,4442.9,4441.1,0.3562]
[1759981481765,2.25129145,4441.9,4441.1,0.3562]
[1759981481964,2.25129145,4441.9,4441.2,0.02251643]
[1759981482175,2.25130001,4441.9,4441.2,0.02251643]
[1759981482560,2.72394759,4442.2,4441.2,0.02251643]
[1759981482561,0.67614852,4441.8,4441.2,0.02251643]
[1759981482790,0.67614852,4441.8,4441.3,0.26304469]
[1759981482991,0.67614852,4441.8,4441.4,0.02251542]
[1759981483179,2.92749129,4441.8,4441.2,0.02251643]
[1759981483354,2.25134277,4441.8,4441.2,0.02251643]
[1759981483788,2.92744315,4441.9,4441.2,0.02251643]
[1759981483985,2.25129463,4441.9,4441.2,0.02251643]
[1759981484856,2.25134179,4441.8,4441.2,0.02251643]
[1759981485186,2.25134179,4441.8,4441.2,0.2855675]
[1759981486092,2.25134179,4441.8,4441.2,0.02251643]
[1759981486388,2.25143191,4441.7,4441.2,0.02251643]
[1759981486588,1.14714852,4442.0,4441.2,0.02251643]
[1759981486589,2.2513461,4441.8,4441.2,0.02251643]
[1759981486788,1.14714852,4442.0,4441.2,0.02251643]
[1759981487182,2.25134772,4441.8,4441.2,0.02251643]
[1759981487488,2.25134772,4441.8,4441.2,0.28556698]
[1759981488396,2.25139223,4441.7,4441.2,0.02251643]
[1759981488892,2.25144652,4441.6,4441.2,0.02251643]
[1759981490468,2.25140177,4441.7,4441.2,0.02251643]
[1759981490695,2.25145689,4441.6,4441.2,0.02251643]
[1759981491218,0.112,4441.5,4441.2,0.02251643]
[1759981491504,2.3635152,4441.5,4441.2,0.02251643]
[1759981492576,0.112,4441.5,4441.2,0.02251643]
[1759981493301,0.112,4442.0,4441.3,13.86287692]
[1759981493592,0.112,4442.0,4441.4,2.00365475]
[1759981494017,0.112,4442.0,4441.5,0.471]
[1759981494168,0.112,4442.0,4441.6,0.3687144]
[1759981494667,0.112,4442.0,4441.7,0.3462]
[1759981494876,0.112,4442.0,4441.8,0.02251339]
[1759981495583,0.112,4442.6,4441.8,0.13451339]
[1759981495907,0.112,4442.6,4442.1,7.17026133]
[1759981496207,0.112,4442.6,4442.2,9.17301136]
[1759981496385,0.112,4442.6,4442.2,11.40161346]
[1759981496726,0.112,4442.6,4442.3,1.02216265]
[1759981497016,2.25070937,4443.1,4442.4,0.27113448]
[1759981497216,0.112,4442.8,4442.4,0.27113448]
[1759981497420,0.67594894,4444.1,4442.6,2.25093413]
[1759981497421,2.25032629,4443.8,4442.6,2.25093413]
[1759981497719,2.48749,4444.3,4442.9,4.91908545]
[1759981497720,0.112,4443.2,4442.9,4.91908545]
[1759981498020,2.26032138,4443.9,4443.0,11.30639971]
[1759981498317,0.112,4443.6,4443.1,1.99125532]
[1759981498517,0.112,4443.6,4443.1,3.89572165]
[1759981498835,0.112,4443.6,4443.2,0.3462]
[1759981499032,0.112,4443.6,4443.1,3.89572165]
[1759981499033,0.112,4443.6,4443.3,0.02250579]
[1759981499470,0.112,4443.6,4443.4,0.3462]
[1759981499674,0.112,4443.6,4443.5,0.02250478]
[1759981500473,0.112,4443.6,4443.2,0.0225063]
[1759981500906,2.25054296,4443.4,4443.0,9.1332]
[1759981501116,2.69680997,4443.3,4443.0,6.346]
[1759981501307,0.4462,4443.2,4443.0,6.346]
[1759981501511,0.4462,4443.1,4443.0,6.346]
[1759981502330,2.69688083,4443.1,4443.0,6.346]
[1759981502482,0.4462,4443.1,4443.0,6.346]
[1759981502682,0.2283,4443.7,4443.0,6.346]
[1759981502683,0.4462,4443.5,4443.0,6.346]
[1759981502882,2.25059048,4443.3,4443.0,6.346]
[1759981503203,2.69673677,4443.4,4443.0,6.346]
[1759981503912,2.69679615,4443.3,4443.0,6.346]
[1759981504206,0.4462,4443.3,4443.0,6.346]
[1759981504408,0.4462,4443.2,4443.0,6.346]
[1759981505084,2.69683452,4443.2,4443.0,6.346]
[1759981505522,0.4462,4443.2,4443.0,6.346]
[1759981506992,2.25021476,4444.1,4443.1,0.0225068]
[1759981506993,0.4462,4444.1,4443.1,0.0225068]
[1759981507212,0.4462,4443.8,4443.1,0.0225068]
[1759981507419,2.2504725,4443.6,4443.1,0.0225068]
[1759981507738,0.112,4443.1,4443.0,6.346]
[1759981509831,0.002,4443.6,4443.0,6.346]
[1759981509832,0.002,4443.6,4443.5,2.25047822]
[1759981510149,0.002,4443.6,4443.5,18.52116367]
[1759981510292,0.002,4443.6,4443.5,18.86736367]
[1759981510624,0.002,4443.6,4443.5,18.95745122]
[1759981512098,1e-08,4443.9,4443.6,1.92]
[1759981512303,1e-08,4444.2,4444.1,4.80377438]
[1759981512616,1e-08,4444.2,4444.1,16.30715983]
[1759981512804,1e-08,4444.2,4444.1,16.65335983]
[1759981514238,1e-08,4444.2,4444.1,17.10218432]
[1759981517665,1e-08,4444.2,4444.1,17.19224631]
[1759981517932,1e-08,4444.2,4444.1,17.98194311]
[1759981518159,1e-08,4444.2,4444.1,12.42925766]
[1759981518357,1e-08,4444.2,4444.1,10.06043317]
[1759981518527,1e-08,4444.2,4444.1,11.98043317]
[1759981519355,1e-08,4444.2,4444.1,16.89951862]
[1759981520091,1e-08,4444.2,4444.1,17.53311862]
[1759981521979,1e-08,4444.2,4444.1,16.47235615]
[1759981525269,1e-08,4444.2,4444.1,15.83875615]
[1759981526567,1e-08,4444.2,4444.1,15.83975615]
[1759981529901,1e-08,4444.2,4444.1,16.36135615]
[1759981530108,1e-08,4444.2,4444.1,16.47335615]
[1759981538097,1e-08,4444.2,4444.1,20.42174112]
[1759981549360,0.002,4444.7,4444.6,2.5536]
[1759981549524,0.002,4444.7,4444.6,30.7757904]
[1759981549729,0.002,4444.7,4444.6,31.21149119]
[1759981551465,1e-08,4444.9,4444.8,4.80342001]
[1759981551627,1e-08,4444.9,4444.8,11.15542001]
[1759981551828,1e-08,4444.9,4444.8,12.29131681]
[1759981558573,0.01,4445.9,4444.8,12.29131681]
[1759981558778,0.01,4445.9,4445.8,12.69968389]
[1759981558981,0.01,4445.9,4445.8,21.38968389]
[1759981559155,0.01,4445.9,4445.8,21.50168389]
[1759981559359,0.01,4445.9,4445.8,23.71934939]
[1759981560894,0.01,4445.9,4445.8,23.83237361]
[1759981562603,1e-08,4445.9,4445.8,23.83237361]
[1759981565373,1e-08,4445.9,4445.8,23.71934939]
[1759981566110,1e-08,4445.9,4445.8,23.83026395]
[1759981574607,1e-08,4445.9,4445.8,23.71934939]
[1759981576390,1e-08,4445.9,4445.8,6.62031395]
[1759981576502,1e-08,4445.9,4445.8,13.31351395]
[1759981576928,1e-08,4445.9,4445.8,3.0118]
[1759981577135,1e-08,4445.9,4445.8,8.798]
[1759981577515,1e-08,4445.9,4445.8,10.718]
[1759981579337,1e-08,4445.9,4445.8,10.719]
[1759981579502,0.00200001,4445.9,4445.8,12.96831395]
[1759981579702,0.00200001,4445.9,4445.8,13.31451395]
[1759981580836,0.00200001,4445.9,4445.8,17.89649892]
[1759981581145,0.00200001,4445.9,4445.8,13.94811395]
[1759981581507,0.00200001,4445.9,4445.8,11.6988]
[1759981581722,0.00200001,4445.9,4445.8,15.64718497]
[1759981582044,0.00200001,4445.9,4445.8,17.55029892]
[1759981582229,0.00200001,4445.9,4445.8,17.89649892]
[1759981582945,0.00200001,4445.9,4445.8,17.98654327]
[1759981583433,0.00200001,4445.9,4445.8,17.64034327]
[1759981583637,0.00200001,4445.9,4445.8,15.39102932]
[1759981583803,0.00200001,4445.9,4445.8,17.64034327]
[1759981584009,0.00200001,4445.9,4445.8,13.6919583]
[1759981586039,0.00200001,4445.9,4445.8,10.80904435]
[1759981586543,0.00200001,4445.9,4445.8,13.0583583]
[1759981587337,0.00200001,4445.9,4445.8,13.4045583]
[1759981587712,0.00200001,4445.9,4445.8,13.31451395]
[1759981588337,0.00200001,4445.9,4445.8,13.94811395]
[1759981591642,0.00200001,4445.9,4445.8,14.03816053]
[1759981593234,0.00200001,4445.9,4445.8,13.94811395]
[1759981594115,0.00200001,4445.9,4445.8,10.719]
[1759981595038,0.00200001,4445.9,4445.8,12.96831395]
[1759981598753,0.00200001,4445.9,4445.8,13.31451395]
[1759981601025,0.00200001,4445.9,4445.8,12.96831395]
[1759981602340,0.00050728,4445.9,4445.8,12.96831395]
[1759981602545,0.00050728,4445.9,4445.8,13.31451395]
[1759981610300,0.00050728,4445.9,4445.8,16.00526863]
[1759981616293,0.00050728,4445.9,4445.8,13.94811395]
[1759981619191,0.00050728,4445.9,4445.8,13.60191395]
[1759981620299,0.00050728,4445.9,4445.8,10.719]
[1759981621387,0.00050728,4445.9,4445.8,12.96831395]
[1759981621896,0.00050728,4445.9,4445.8,10.719]
[1759981622100,0.00050728,4445.9,4445.8,10.718]
[1759981622289,0.00050728,4445.9,4445.8,12.96731395]
[1759981624401,0.44280728,4445.9,4445.8,10.606]
[1759981624903,0.00050728,4445.9,4445.8,10.606]
[1759981625776,0.00050728,4445.9,4445.8,12.85531395]
[1759981630414,0.00050728,4445.9,4445.8,8.686]
[1759981630618,2.92217064,4445.9,4445.8,8.686]
[1759981630917,3.43930727,4445.9,4445.8,8.686]
[1759981631786,3.43930727,4445.9,4445.8,6.347]
[1759981633038,3.43930727,4445.9,4445.8,0.001]
[1759981641953,3.5293865,4445.9,4445.8,0.001]
[1759981646856,3.20420727,4445.9,4445.8,0.001]
[1759981647032,2.68707064,4445.9,4445.8,0.001]
[1759981647770,0.00050728,4445.9,4445.8,0.001]
[1759981648050,0.00050728,4445.9,4445.8,0.02349313]
[1759981650658,0.00050728,4445.9,4445.8,0.001]
[1759981651732,0.00050728,4445.9,4445.8,0.02349313]
[1759981651940,0.00050728,4445.9,4445.8,0.001]
[1759981653859,0.00050728,4445.9,4445.8,0.02349313]
[1759981654763,0.00050728,4445.9,4445.8,0.001]
[1759981655765,0.00050728,4445.9,4445.8,3.23336337]
[1759981655950,0.00050728,4445.9,4445.8,5.89896337]
[1759981656332,0.00050728,4445.9,4445.8,5.98900489]
[1759981657065,0.00050728,4445.9,4445.8,9.93762959]
[1759981657360,0.00050728,4445.9,4445.8,5.98900489]
[1759981661866,0.00050728,4445.9,4445.8,6.68900489]
[1759981662464,0.00050728,4445.9,4445.8,13.03300489]
[1759981675487,0.00050728,4445.9,4445.8,16.98162959]
[1759981684772,0.002,4446.4,4446.3,2.88266101]
[1759981684972,0.002,4446.5,4446.3,2.88266101]
[1759981684973,0.002,4446.5,4446.4,2.88261043]
[1759981685181,0.002,4446.8,4446.7,2.8824587]
[1759981685407,0.002,4446.8,4446.7,21.51519668]
[1759981685593,0.002,4446.8,4446.7,21.8389081]
[1759981685994,0.002,4446.8,4446.7,21.92891963]
[1759981686195,0.002,4446.8,4446.7,23.44005344]
[1759981686396,0.002,4446.8,4446.7,23.88254473]
[1759981688889,0.002,4446.8,4446.7,19.93392003]